bitfinex/quotes_ETHUSD_20250318
["timestamp","ask_amount","ask_price","bid_price","bid_amount"]
[1742306511839,0.91732764,1885.7,1885.4,5.30381]
[1742306512042,3.91732764,1885.7,1885.4,5.30381]
[1742306512263,0.91732764,1885.7,1885.4,5.30381]
[1742306512572,4.75613036,1885.5,1885.3,5.30416]
[1742306512776,8.30407,1885.4,1885.0,16.53587]
[1742306512960,8.30407,1885.4,1884.8,0.7618]
[1742306512961,7.75613036,1885.1,1884.9,5.30525]
[1742306513158,7.75613036,1885.1,1885.0,5.30503]
[1742306513159,4.75613036,1885.1,1885.0,5.30503]
[1742306513473,3.0,1885.1,1885.0,5.30503]
[1742306513687,4.75613036,1885.3,1885.2,5.30447]
[1742306514055,7.75613036,1885.3,1885.2,5.30447]
[1742306514257,4.75613036,1885.3,1885.2,5.30447]
[1742306515544,4.75613036,1885.3,1885.2,6.08077]
[1742306515971,4.75613036,1885.3,1885.2,5.30447]
[1742306517246,3.0,1885.2,1884.7,6.07048]
[1742306517549,3.0,1884.7,1884.5,5.30642]
[1742306517749,3.0,1884.7,1884.3,12.00017]
[1742306517750,3.0,1884.5,1884.4,5.30663]
[1742306518049,4.75613036,1884.5,1884.4,7.037303]
[1742306519077,0.40371943,1884.8,1884.6,5.3059]
[1742306519245,7.75613036,1884.7,1884.6,5.3059]
[1742306520977,5.27883036,1885.1,1884.8,5.3056]
[1742306521278,4.75613036,1885.2,1885.1,5.30475]
[1742306521444,0.39845456,1885.6,1885.5,5.30363]
[1742306521640,5.15458492,1885.6,1885.3,5.30409]
[1742306521971,5.82588,1885.7,1885.3,5.30409]
[1742306521972,4.75613036,1885.4,1885.3,5.30409]
[1742306522141,4.75613036,1885.4,1885.2,5.834885]
[1742306522483,0.5227,1885.3,1885.0,5.30494]
[1742306522643,3.0,1885.1,1884.9,11.22921]
[1742306522842,7.75613036,1885.0,1884.9,11.22921]
[1742306523038,11.72454699,1885.6,1884.9,11.22921]
[1742306523039,4.75613036,1885.2,1885.0,5.30503]
[1742306523269,4.75613036,1885.2,1885.1,5.30475]
[1742306523475,7.75613036,1885.2,1885.1,5.30475]
[1742306526486,3.0,1885.1,1885.0,5.30487]
[1742306526787,4.75613036,1885.2,1885.1,5.30475]
[1742306527089,7.75613036,1885.2,1885.1,5.30475]
[1742306527689,3.0,1885.1,1885.0,5.30487]
[1742306527981,7.75613036,1885.2,1885.1,5.30475]
[1742306528480,3.0,1885.1,1884.9,5.30522]
[1742306528687,4.75613036,1885.0,1884.9,5.30522]
[1742306529183,4.75613036,1885.0,1884.9,6.366285]
[1742306529384,0.5227,1885.5,1885.3,5.30405]
[1742306529583,0.5227,1885.5,1885.0,6.10753]
[1742306529584,4.75613036,1885.4,1885.1,11.22671]
[1742306529883,4.75613036,1885.2,1885.1,11.22671]
[1742306530185,13.06060036,1885.2,1884.9,5.30509]
[1742306530486,3.0,1885.2,1885.0,10.60989]
[1742306530780,4.75613036,1885.1,1885.0,10.60989]
[1742306530949,3.5227,1885.5,1885.2,5.30435]
[1742306531154,8.82644,1885.5,1885.1,5.30475]
[1742306531355,3.5227,1885.5,1885.2,5.30435]
[1742306531685,7.75613036,1885.3,1885.2,10.60868]
[1742306532682,8.5317434,1885.3,1885.0,0.7904]
[1742306532871,4.75613036,1885.1,1884.8,5.922]
[1742306533078,7.75613036,1885.1,1885.0,5.30482]
[1742306533474,3.0,1885.1,1885.0,5.30482]
[1742306533789,3.0,1885.1,1885.0,6.13692]
[1742306533986,7.75613036,1885.4,1885.3,5.30419]
[1742306534186,4.75613036,1885.4,1885.3,11.22619]
[1742306537576,4.75613036,1885.4,1885.3,5.922]
[1742306537910,4.75613036,1885.4,1885.3,11.22619]
[1742306538107,4.75613036,1885.4,1885.3,5.30419]
[1742306541159,8.82689,1885.3,1884.9,5.30506]
[1742306541364,3.0,1884.9,1884.8,5.3055]
[1742306541565,7.75613036,1884.9,1884.8,5.3055]
[1742306542807,7.75613036,1884.9,1884.0,0.7609]
[1742306542808,5.30618,1884.6,1884.0,0.7609]
[1742306543024,3.0,1884.1,1884.0,5.30774]
[1742306543171,3.0,1884.1,1883.9,5.30807]
[1742306543368,7.75613036,1884.0,1883.8,10.61661]
[1742306543620,7.75613036,1884.0,1883.8,5.30823]
[1742306543912,7.75613036,1884.0,1883.9,5.30813]
[1742306545894,0.5227,1884.7,1883.9,1.849936]
[1742306546063,10.06183036,1884.8,1884.4,5.30654]
[1742306546266,0.5227,1885.0,1884.3,5.921]
[1742306546267,4.75613036,1884.6,1884.3,5.921]
[1742306546486,5.8293,1884.5,1884.1,5.30746]
[1742306546802,4.75613036,1884.2,1883.6,6.662556]
[1742306546969,3.5227,1884.1,1883.6,6.662666]
[1742306547170,7.75613036,1883.7,1883.6,5.839866]
[1742306547771,3.0,1883.6,1883.4,28.7824]
[1742306547982,3.0,1883.8,1883.5,5.30926]
[1742306548383,0.39062541,1884.0,1883.8,5.30824]
[1742306548594,3.5227,1884.1,1883.8,10.61646]
[1742306548790,0.5227,1884.1,1883.8,6.04673152]
[1742306549099,3.0,1883.8,1883.5,5.3091]
[1742306549407,3.0,1883.8,1883.6,5.30896]
[1742306549592,9.23915753,1884.1,1883.7,5.3087]
[1742306549792,3.0,1884.0,1883.6,5.3089]
[1742306549993,4.75613036,1883.7,1883.6,5.3089]
[1742306550201,7.75613036,1883.7,1883.6,5.3089]
[1742306552301,7.75613036,1883.7,1883.2,0.7766]
[1742306552302,3.0,1883.6,1883.3,5.30971]
[1742306552468,3.0,1883.3,1883.1,5.31036]
[1742306552670,8.60926,1883.5,1883.2,5.31011]
[1742306553198,8.30983,1883.3,1882.9,11.23288]
[1742306553400,4.75613036,1883.0,1882.9,11.23274]
[1742306553566,0.5227,1883.9,1883.3,5.30982]
[1742306553767,4.75613036,1883.8,1883.7,5.30842]
[1742306554003,7.75613036,1883.8,1883.7,5.30842]
[1742306554202,4.75613036,1883.8,1883.7,5.30842]
[1742306554507,0.5227,1884.2,1883.9,5.30807]
[1742306554670,7.75613036,1883.9,1883.8,11.23038]
[1742306555071,7.75613036,1883.9,1883.2,5.31005]
[1742306555072,0.5227,1883.7,1883.2,5.922]
[1742306555294,4.75613036,1883.6,1883.5,5.30926]
[1742306555498,4.75613036,1883.7,1883.6,5.30887]
[1742306555695,3.0,1883.6,1883.5,5.30915]
[1742306556207,3.0,1883.6,1883.3,5.3098]
[1742306556415,3.0,1883.4,1883.3,5.30964]
[1742306556576,4.75613036,1883.7,1883.4,5.30954]
[1742306556774,3.0,1883.6,1883.5,5.30915]
[1742306557081,6.02,1884.2,1884.0,5.30771]
[1742306557297,6.02,1884.2,1884.0,5.30785]
[1742306557298,4.75613036,1884.2,1884.0,5.30785]
[1742306557493,4.75613036,1884.2,1884.1,5.30757]
[1742306557693,3.0,1884.1,1884.0,5.30785]
[1742306558095,11.73171773,1884.5,1884.1,5.30757]
[1742306558293,7.75613036,1884.2,1884.1,5.30757]
[1742306558615,10.61542,1884.0,1883.7,5.922]
[1742306558817,4.75613036,1883.8,1883.7,5.922]
[1742306559020,3.0,1883.7,1883.5,5.30913]
[1742306559336,0.5227,1883.8,1883.5,5.30913]
[1742306559473,3.0,1883.7,1883.4,11.23147]
[1742306559679,7.75613036,1883.5,1883.4,11.23147]
[1742306560374,3.0,1883.4,1883.1,5.31024]
[1742306560580,3.77561304,1883.5,1883.2,5.922]
[1742306560798,3.77561304,1883.5,1883.2,11.23196]
[1742306560998,0.77561304,1883.5,1883.3,5.30961]
[1742306561203,3.0,1883.6,1883.3,10.61928]
[1742306561614,4.75613036,1883.4,1883.2,11.23208]
[1742306561914,4.75613036,1883.4,1883.3,5.30982]
[1742306562683,4.75613036,1883.4,1883.2,11.23196]
[1742306562883,4.75613036,1883.4,1883.2,16.54187]
[1742306563123,4.75613036,1883.4,1883.3,5.30982]
[1742306564137,4.75613036,1883.4,1883.3,7.60353861]
[1742306564433,7.75613036,1883.7,1883.4,5.30945]
[1742306564604,8.83114,1883.8,1883.3,5.30978]
[1742306564797,3.0,1883.5,1883.2,5.3099]
[1742306565124,3.0,1883.6,1883.3,5.30964]
[1742306565527,7.75613036,1883.4,1883.3,5.30964]
[1742306565902,7.75613036,1883.4,1882.9,9.508827]
[1742306566126,3.0,1882.8,1882.3,0.7949]
[1742306566326,3.0,1882.8,1882.3,11.2346]
[1742306566327,3.0,1882.4,1882.3,11.2346]
[1742306566505,3.0,1882.8,1882.5,5.31208]
[1742306566909,3.0,1882.8,1882.5,5.31194]
[1742306567305,8.31126,1882.8,1882.5,5.31194]
[1742306567703,3.0,1882.8,1882.5,5.31194]
[1742306567907,4.75613036,1882.6,1882.5,5.31194]
[1742306568418,3.0,1882.8,1882.7,5.31152]
[1742306568608,4.75613036,1882.9,1882.8,5.31123]
[1742306568808,4.75613036,1883.1,1883.0,5.31067]
[1742306569127,4.75613036,1883.3,1883.2,5.31011]
[1742306569339,7.75613036,1883.3,1883.2,5.31011]
[1742306569494,4.75613036,1883.3,1883.2,5.31011]
[1742306569702,4.75613036,1883.3,1883.1,16.5426]
[1742306570028,4.75613036,1883.3,1883.1,11.23221]
[1742306570430,4.75613036,1883.3,1883.2,5.31011]
[1742306571895,4.75613036,1883.3,1882.8,40.922]
[1742306571896,10.5416234,1883.3,1882.8,40.922]
[1742306572104,0.47561304,1883.3,1883.0,5.3105]
[1742306572320,3.0,1883.2,1882.9,5.31087]
[1742306572530,3.0,1883.2,1883.0,5.31048]
[1742306573643,4.75613036,1883.1,1882.9,5.31087]
[1742306574003,4.75613036,1883.1,1882.9,10.62164]
[1742306574210,4.75613036,1883.1,1882.9,5.31077]
[1742306574616,4.75613036,1883.1,1882.9,10.6216]
[1742306574813,4.75613036,1883.1,1882.9,5.31077]
[1742306575296,3.0,1883.0,1882.8,5.31121]
[1742306575534,3.0,1883.0,1882.3,17.566]
[1742306575535,3.0,1882.8,1882.6,11.2337]
[1742306575704,4.75613036,1882.7,1882.6,11.2337]
[1742306575904,8.27883036,1882.7,1882.2,5.922]
[1742306576120,7.75613036,1882.3,1882.2,5.31288]
[1742306577023,3.0,1882.2,1882.0,5.31349]
[1742306577224,7.75613036,1882.1,1882.0,5.31349]
[1742306577419,7.75613036,1882.1,1881.9,11.23672]
[1742306577651,4.75613036,1882.1,1881.9,16.55038]
[1742306577807,4.75613036,1882.1,1881.9,5.31366]
[1742306578008,4.75613036,1882.1,1882.0,5.31349]
[1742306578214,4.75613036,1882.1,1881.9,5.31366]
[1742306578550,5.16408031,1882.1,1881.9,5.31366]
[1742306578737,5.16408031,1882.1,1881.8,16.55091]
[1742306578925,7.75613036,1881.9,1881.8,16.55091]
[1742306579124,7.75613036,1881.9,1881.6,0.04]
[1742306579125,3.0,1881.8,1881.6,0.04]
[1742306579332,7.75613036,1881.7,1881.6,0.04]
[1742306579735,7.75613036,1881.7,1881.6,5.35462]
[1742306580110,7.75613036,1881.7,1881.6,0.04]
[1742306580315,7.75613036,1881.7,1881.6,5.35462]
[1742306580722,8.16140405,1881.7,1881.6,0.04]
[1742306580923,14.29188446,1881.7,1881.6,0.04]
[1742306581128,14.65144773,1881.7,1881.6,0.04]
[1742306581323,14.65144773,1881.7,1881.1,0.01]
[1742306581324,3.5227,1881.6,1881.1,0.01]
[1742306581620,3.0,1881.3,1881.1,0.01]
[1742306582711,4.06634994,1881.3,1881.1,0.01]
[1742306582939,5.5160853,1881.3,1881.1,0.01]
[1742306583251,10.8315853,1881.3,1881.1,0.01]
[1742306583416,3.5227,1881.2,1881.1,0.01]
[1742306583747,8.83845,1881.2,1881.1,0.01]
[1742306583960,3.5227,1881.2,1881.1,0.01]
[1742306584141,4.77389883,1881.2,1881.1,0.01]
[1742306585018,10.08964883,1881.2,1881.1,0.01]
[1742306585415,10.08964883,1881.2,1880.1,35.0]
[1742306585416,1.0727,1881.0,1880.1,35.0]
[1742306585637,3.0,1880.3,1880.2,5.31845]
[1742306585848,5.11569363,1880.7,1880.2,5.31845]
[1742306586018,3.0,1880.6,1880.5,5.31757]
[1742306586631,5.11569363,1880.7,1880.5,10.63514]
[1742306586826,5.11569363,1880.7,1880.5,5.31757]
[1742306587047,8.11569363,1880.7,1880.6,5.31745]
[1742306587360,3.0,1880.7,1880.6,5.31745]
[1742306587731,0.39856057,1881.2,1881.1,5.31603]
[1742306588052,3.0,1881.2,1881.1,5.31603]
[1742306588219,5.11569363,1881.3,1881.2,5.31575]
[1742306588425,5.11569363,1881.5,1881.2,5.31552]
[1742306588647,11.52589699,1881.5,1881.1,5.31596]
[1742306588820,3.0,1881.4,1881.2,35.0]
[1742306589025,0.39720111,1881.4,1881.2,35.0]
[1742306589247,5.11569363,1881.5,1881.3,5.31547]
[1742306589433,0.5227,1881.8,1881.4,5.31498]
[1742306589638,5.11569363,1881.8,1881.6,5.31451]
[1742306589871,3.0,1881.7,1881.6,5.31451]
[1742306590377,5.11569363,1881.8,1881.7,5.31434]
[1742306590523,3.0,1881.7,1881.3,6.07315]
[1742306590728,8.11569363,1881.4,1881.3,5.31547]
[1742306591140,3.0,1881.4,1881.3,11.24147]
[1742306591344,11.13569363,1881.9,1881.8,5.31406]
[1742306591524,5.11569363,1881.9,1881.8,5.31406]
[1742306591833,5.11569363,1882.2,1881.7,6.6771]
[1742306592037,5.11569363,1881.9,1881.8,5.31381]
[1742306593747,5.11569363,1882.2,1882.1,5.31321]
[1742306595047,6.11111718,1882.7,1882.5,5.31194]
[1742306595451,5.31194,1882.5,1882.3,5.31258]
[1742306595657,3.0,1882.4,1882.1,5.31308]
[1742306595979,8.31321,1882.1,1881.7,0.8258]
[1742306596284,8.11569363,1881.8,1881.7,5.31434]
[1742306596574,8.11569363,1881.8,1881.6,5.31441]
[1742306596779,5.11569363,1881.8,1881.4,6.14098]
[1742306596935,3.0,1881.7,1881.4,6.14098]
[1742306597136,5.11569363,1881.8,1881.4,6.14079]
[1742306597380,3.0,1881.7,1881.5,5.31466]
[1742306597832,5.11569363,1881.8,1881.7,5.31434]
[1742306598034,8.11569363,1881.8,1881.7,5.31434]
[1742306598233,3.0,1881.8,1881.7,5.31434]
[1742306599362,5.11569363,1882.1,1882.0,5.31349]
[1742306599860,9.02,1882.3,1882.2,5.31293]
[1742306600066,1.13381172,1882.6,1882.3,5.31264]
[1742306600365,5.11569363,1882.5,1882.0,11.23831]
[1742306600526,5.11569363,1882.2,1881.8,5.925]
[1742306600745,3.0,1882.1,1881.9,5.31362]
[1742306600964,3.0,1882.1,1881.8,11.23905]
[1742306601173,5.3135,1882.0,1881.6,6.08199]
[1742306601490,8.11569363,1881.9,1881.6,0.7675]
[1742306601650,14.56339363,1881.9,1881.1,0.8028]
[1742306601850,3.0,1881.2,1881.0,5.31622]
[1742306602049,3.0,1881.2,1880.9,11.43587]
[1742306602279,3.0,1881.2,1880.9,5.31649]
[1742306602481,3.0,1881.2,1880.8,5.31678]
[1742306602647,9.69954521,1881.2,1880.8,5.31674]
[1742306602980,9.69954521,1881.2,1880.7,5.31693]
[1742306602981,4.38378521,1881.2,1880.7,5.31693]
[1742306603160,4.38378521,1881.2,1880.9,5.31655]
[1742306603360,3.0,1881.0,1880.7,5.31696]
[1742306603558,3.0,1881.0,1880.7,10.63401]
[1742306603744,3.0,1881.0,1880.7,5.31696]
[1742306603944,3.0,1881.0,1880.7,10.63392]
[1742306604149,9.47000263,1881.0,1880.4,5.31775]
[1742306604405,3.0,1880.6,1880.4,5.31775]
[1742306604585,3.0,1880.6,1880.3,5.849945]
[1742306604748,3.0,1880.6,1880.3,5.3181]
[1742306604953,3.0,1880.6,1880.3,10.63622]
[1742306605360,3.0,1880.6,1880.3,5.3181]
[1742306605560,3.0,1880.3,1880.1,5.31871]
[1742306605867,3.0,1880.3,1880.0,11.24401]
[1742306606067,8.31844,1880.3,1879.9,0.1121824]
[1742306606267,3.0,1880.0,1879.9,5.4316124]
[1742306606459,3.0,1880.0,1879.9,0.1121824]
[1742306607071,3.0,1880.0,1879.9,5.4316124]
[1742306607555,3.0,1880.0,1879.9,0.1121824]
[1742306608365,4.34346936,1880.0,1879.9,0.1121824]
[1742306608561,9.66260936,1880.0,1879.9,0.1121824]
[1742306608861,3.0,1879.9,1879.6,5.32022]
[1742306609065,5.11569363,1879.8,1879.5,5.32034]
[1742306609288,5.11569363,1879.8,1879.6,5.32024]
[1742306609995,5.11569363,1879.8,1879.7,5.31999]
[1742306610160,3.0,1879.9,1879.8,5.31971]
[1742306610786,3.0,1879.9,1879.7,5.31999]
[1742306611160,3.0,1879.9,1879.7,10.63978]
[1742306611366,6.02,1880.0,1879.9,5.31943]
[1742306611558,3.0,1880.0,1879.8,5.31959]
[1742306611758,3.0,1880.0,1879.9,5.31943]
[1742306611959,3.0,1880.0,1879.8,10.63916]
[1742306612155,3.0,1880.0,1879.9,5.31943]
[1742306612360,5.11569363,1880.1,1880.0,5.31914]
[1742306612762,3.0,1880.0,1879.9,5.31943]
[1742306612962,3.0,1880.0,1879.8,11.24666]
[1742306613496,3.0,1880.0,1879.9,5.31943]
[1742306614268,3.0,1880.0,1879.8,11.24657]
[1742306614592,3.0,1879.7,1879.6,5.32]
[1742306614790,5.11569363,1879.8,1879.6,5.32]
[1742306615098,5.11569363,1879.8,1879.7,5.31999]
[1742306615457,5.11569363,1879.8,1879.5,5.3205]
[1742306615794,3.0,1879.9,1879.6,5.32027]
[1742306615997,4.78321216,1879.7,1879.5,5.32055]
[1742306616165,4.78321216,1879.7,1879.4,5.32076]
[1742306616166,7.78321216,1879.7,1879.4,5.32076]
[1742306616367,4.78321216,1879.5,1879.4,5.32076]
[1742306616767,7.78321216,1879.6,1879.4,10.64142]
[1742306616969,7.78321216,1879.6,1879.5,5.32056]
[1742306618187,7.78321216,1879.6,1879.5,6.09636]
[1742306619671,4.78321216,1879.7,1879.6,5.32028]
[1742306619997,3.0,1879.8,1879.7,5.31999]
[1742306620204,4.78321216,1879.7,1879.6,5.32028]
[1742306620972,4.78321216,1879.7,1879.4,5.32075]
[1742306621172,7.78321216,1879.5,1879.4,5.32063]
[1742306622601,3.0,1879.4,1879.3,5.32111]
[1742306622808,4.78321216,1879.5,1879.3,10.64214]
[1742306623115,7.78321216,1879.5,1879.4,5.32084]
[1742306623611,3.0,1879.5,1879.4,7.186327]
[1742306624311,7.78321216,1879.9,1879.8,5.31971]
[1742306624487,3.0,1879.8,1879.7,5.31988]
[1742306624679,4.78321216,1879.9,1879.8,5.31971]
[1742306624885,3.92393,1879.8,1879.6,11.24821]
[1742306625086,3.0,1879.7,1879.6,11.24828]
[1742306625306,3.0,1879.7,1879.6,12.905153]
[1742306626520,12.22002643,1880.4,1879.6,12.905153]
[1742306626521,0.5227,1880.4,1880.2,5.31845]
[1742306626834,6.8427,1880.6,1880.3,5.31809]
[1742306627115,0.5227,1880.6,1880.5,5.31773]
[1742306627316,6.02,1880.8,1880.7,5.31716]
[1742306627636,6.02,1880.8,1880.2,0.8322]
[1742306627637,4.78321216,1880.8,1880.6,5.31742]
[1742306627939,4.78321216,1880.7,1880.6,5.31742]
[1742306628086,0.5227,1880.9,1880.7,5.31704]
[1742306628291,7.78321216,1880.8,1880.7,5.31704]
[1742306628502,3.0,1880.7,1880.6,5.31735]
[1742306628702,7.78321216,1880.8,1880.7,5.31716]
[1742306628703,4.78321216,1880.8,1880.7,5.31716]
[1742306629013,4.78321216,1880.8,1880.6,1.063505]
[1742306629313,4.78321216,1880.8,1880.4,5.927]
[1742306629516,4.78321216,1880.5,1880.4,11.24494]
[1742306629813,7.78321216,1880.5,1880.4,5.31794]
[1742306630316,3.0,1880.5,1880.4,5.31794]
[1742306630883,4.78321216,1880.8,1880.7,5.31716]
[1742306631110,4.78321216,1880.8,1880.7,11.24316]
[1742306631312,7.78321216,1880.8,1880.7,11.24316]
[1742306631514,6.5427,1881.3,1881.0,5.31628]
[1742306631722,9.56642432,1881.1,1880.7,5.926]
[1742306631896,0.95664243,1881.0,1880.8,5.31676]
[1742306632101,3.0,1880.9,1880.6,5.31744]
[1742306632307,3.5227,1880.9,1880.6,5.31744]
[1742306632617,3.0,1880.7,1880.4,5.318]
[1742306632819,7.78321216,1880.5,1880.4,5.31789]
[1742306634300,7.78321216,1880.5,1880.3,5.31826]
[1742306634501,3.0,1880.4,1879.9,6.1212]
[1742306634697,7.78321216,1880.3,1880.2,5.31846]
[1742306634890,3.0,1880.3,1880.2,5.31846]
[1742306635943,3.0,1880.3,1880.0,5.31912]
[1742306636088,4.78321216,1880.1,1880.0,5.31912]
[1742306636290,4.78321216,1880.1,1879.9,5.3194]
[1742306636291,8.56153338,1880.1,1879.9,5.3194]
[1742306636544,3.0,1880.0,1879.7,5.925]
[1742306636840,7.78321216,1879.8,1879.7,11.24496]
[1742306637242,3.0,1879.8,1879.7,11.24496]
[1742306638024,3.0,1879.8,1879.7,5.31996]
[1742306639494,3.0,1879.8,1879.7,6.383974]
[1742306639903,4.78321216,1880.1,1880.0,5.31914]
[1742306640308,7.78321216,1880.1,1880.0,5.31914]
[1742306641328,3.0,1880.0,1879.9,5.31932]
[1742306641526,4.78321216,1880.1,1879.7,16.56465]
[1742306641846,3.0,1879.8,1879.7,5.31977]
[1742306642625,3.0,1879.8,1879.6,5.32016]
[1742306642793,4.78321216,1879.7,1879.6,5.32016]
[1742306642993,7.78321216,1879.7,1879.6,5.32016]
[1742306643627,7.78321216,1879.7,1879.4,5.924]
[1742306643815,3.0,1879.6,1879.5,5.32052]
[1742306644134,4.78321216,1879.7,1879.6,5.32028]
[1742306644432,4.00102122,1880.0,1879.8,10.6393]
[1742306644632,7.78321216,1879.9,1879.8,5.31959]
[1742306645429,7.78321216,1879.9,1879.7,5.31974]
[1742306645625,7.78321216,1879.9,1879.8,5.31971]
[1742306645806,4.78321216,1879.9,1879.8,5.31971]
[1742306646324,4.78321216,1879.9,1879.7,10.63961]
[1742306646531,4.78321216,1879.9,1879.8,5.31971]
[1742306648334,3.0,1879.8,1879.6,16.56438]
[1742306648536,4.78321216,1879.9,1879.8,5.31971]
[1742306648737,3.0,1879.9,1879.8,6.08311]
[1742306649459,4.78321216,1880.1,1879.8,6.08311]
[1742306649602,6.02,1880.7,1879.8,6.08311]
[1742306649603,4.78321216,1880.5,1880.0,5.319]
[1742306649920,4.78321216,1880.7,1880.6,5.31745]
[1742306650499,7.78321216,1880.7,1880.6,5.31745]
[1742306650701,3.0,1880.6,1880.5,5.31762]
[1742306650902,4.78321216,1880.7,1880.4,5.318]
[1742306651211,5.038629,1880.4,1880.3,5.3183]
[1742306651416,4.78321216,1880.5,1880.3,5.3183]
[1742306651633,5.31380338,1880.5,1880.3,5.3183]
[1742306651810,3.0,1880.4,1880.3,5.3183]
[1742306652640,8.31380338,1880.5,1880.2,5.31854]
[1742306652960,7.78321216,1880.3,1880.1,5.923]
[1742306653122,7.78321216,1880.3,1880.1,11.24174]
[1742306653327,7.78321216,1880.3,1880.1,11.24171]
[1742306653515,7.78321216,1880.3,1880.2,5.31858]
[1742306653840,7.78321216,1880.3,1880.1,11.24171]
[1742306654050,3.0,1880.2,1879.9,10.63864]
[1742306654218,3.0,1880.0,1879.9,10.63864]
[1742306654417,7.78321216,1880.2,1880.1,5.31886]
[1742306654618,3.0,1880.1,1880.0,5.3191]
[1742306655212,4.78321216,1880.2,1880.1,5.31886]
[1742306655421,3.0,1880.2,1880.1,6.382656]
[1742306655613,0.9183822,1880.9,1880.3,5.31818]
[1742306655818,6.02,1881.1,1880.9,5.31642]
[1742306656029,11.85854,1881.2,1880.9,5.31642]
[1742306656351,0.5227,1881.4,1881.3,5.31547]
[1742306656554,0.5227,1881.4,1881.1,10.63191]
[1742306657047,3.5227,1881.4,1881.2,5.31574]
[1742306657220,6.721829,1881.4,1881.0,5.31628]
[1742306657417,3.0,1881.0,1880.9,5.31643]
[1742306657618,4.78321216,1881.1,1881.0,5.31632]
[1742306657950,3.0,1881.0,1880.8,11.23888]
[1742306658254,7.78321216,1880.9,1880.8,16.55561]
[1742306658449,7.78321216,1880.9,1880.8,11.23873]
[1742306658649,7.78321216,1880.9,1880.8,5.31673]
[1742306659375,8.84027,1880.6,1880.2,5.31849]
[1742306659528,14.32343552,1880.5,1880.1,10.6376]
[1742306659843,11.32343552,1880.5,1880.1,5.31862]
[1742306660023,3.0,1880.4,1880.2,5.31856]
[1742306660358,5.31811,1880.4,1880.0,5.31888]
[1742306660752,8.31778,1880.5,1880.1,5.31877]
[1742306660951,3.0,1880.5,1880.2,5.31847]
[1742306661154,5.31803,1880.4,1880.1,5.31873]
[1742306661357,9.02,1880.5,1880.1,10.63739]
[1742306661521,14.33789,1880.5,1880.1,5.31866]
[1742306661726,3.0,1880.4,1880.0,5.31914]
[1742306661926,3.0,1880.4,1880.2,5.31842]
[1742306662124,3.0,1880.4,1880.2,5.3184]
[1742306662327,3.0,1880.4,1880.1,5.31875]
[1742306662632,3.0,1880.4,1880.2,5.31835]
[1742306662833,3.0,1880.4,1880.1,5.31876]
[1742306662834,3.902,1880.4,1880.1,5.31876]
[1742306663037,3.902,1880.4,1880.1,5.31869]
[1742306663227,3.0,1880.4,1880.3,5.3183]
[1742306663760,3.0,1880.4,1880.2,10.63686]
[1742306663945,3.0,1880.4,1880.2,10.63681]
[1742306664154,3.0,1880.4,1880.2,5.3184]
[1742306664467,3.0,1880.4,1880.1,5.31882]
[1742306664644,4.433779,1880.4,1880.1,5.31882]
[1742306664845,9.751829,1880.4,1880.1,5.31882]
[1742306665035,3.0,1880.1,1879.8,6.10596]
[1742306665224,3.5227,1880.2,1880.0,5.31911]
[1742306665424,0.5227,1880.4,1880.1,5.31886]
[1742306665637,3.0,1880.5,1880.3,5.31816]
[1742306665846,3.0,1880.5,1880.4,5.31801]
[1742306666047,0.5227,1880.8,1880.6,5.31728]
[1742306666254,5.12152852,1880.9,1880.7,5.31706]
[1742306666460,0.5227,1881.0,1880.9,5.3166]
[1742306666757,6.17577652,1881.2,1881.0,5.3163]
[1742306667269,3.0,1881.1,1881.0,5.3163]
[1742306667474,3.0,1881.1,1880.9,10.63288]
[1742306667680,3.0,1881.1,1881.0,5.31632]
[1742306668042,0.39028877,1881.4,1880.8,11.23685]
[1742306668258,5.64422852,1881.5,1881.3,5.31546]
[1742306668591,3.0,1881.4,1881.3,5.31546]
[1742306668796,5.64422852,1881.5,1881.3,10.63078]
[1742306669097,6.04855617,1881.8,1881.5,5.31474]
[1742306669396,3.0,1881.7,1881.5,5.31474]
[1742306669687,6.04855617,1881.8,1881.6,5.31446]
[1742306669895,5.12152852,1882.0,1881.6,5.31462]
[1742306670053,0.5227,1882.1,1881.5,5.31482]
[1742306670240,0.5227,1882.1,1881.9,5.31377]
[1742306670440,1.08712285,1882.1,1881.8,5.31394]
[1742306670692,4.08712285,1882.1,1881.8,5.31394]
[1742306670992,4.08712285,1882.1,1881.7,5.31416]
[1742306670993,5.12152852,1881.9,1881.7,5.31422]
[1742306671154,1.08712285,1882.1,1881.8,5.31406]
[1742306671360,1.08712285,1882.1,1881.6,5.919]
[1742306671581,0.56442285,1882.1,1881.9,5.31376]
[1742306671894,3.56442285,1882.1,1881.9,10.62732]
[1742306672100,0.56442285,1882.1,1882.0,5.31349]
[1742306672385,6.02,1882.4,1881.9,0.7725]
[1742306672587,6.02,1882.4,1882.2,5.31266]
[1742306672788,6.02,1882.4,1882.1,10.62626]
[1742306672993,6.02,1882.4,1882.1,10.62615]
[1742306673287,3.0,1882.3,1882.1,10.62606]
[1742306673444,6.02,1882.4,1882.2,5.31293]
[1742306673646,6.02,1882.4,1882.3,5.31264]
[1742306673845,3.0,1882.4,1882.3,5.31264]
[1742306674256,3.0,1882.4,1882.2,5.31293]
[1742306674593,2.39339,1882.2,1882.0,11.23143]
[1742306674773,3.0,1882.1,1881.9,5.31367]
[1742306674957,3.0,1882.1,1882.0,5.31349]
[1742306676500,3.0,1882.5,1882.1,5.31294]
[1742306676663,3.0,1882.2,1882.1,5.31321]
[1742306677478,3.0,1882.2,1882.0,5.31341]